fUST/lending_fUST_20251203
["ID","MTS","AMOUNT","RATE_DAILY","PERIOD"]
[395486717,1764696649344,-648.08519385,0.00013698,2]
[395486719,1764696649353,-151.0,0.00013698,2]
[395486721,1764696649363,-264.034254,0.00013698,2]
[395486723,1764696649373,-500.0,0.00013698,2]
[395486725,1764696649382,-500.0,0.00013698,2]
[395486727,1764696649392,-500.0,0.00013698,2]
[395486728,1764696649402,-500.0,0.00013698,2]
[395486729,1764696649413,-500.0,0.00013698,2]
[395486730,1764696649423,-500.0,0.00013698,2]
[395486731,1764696649433,-1313.57,0.00013698,2]
[395486732,1764696649442,-500.0,0.00013698,2]
[395486733,1764696649454,-500.0,0.00013698,2]
[395486734,1764696649464,-662.22,0.00013698,2]
[395486735,1764696649473,-500.0,0.00013698,2]
[395486736,1764696649483,-156.273462,0.00013698,2]
[395486737,1764696649493,-500.0,0.00013698,2]
[395486738,1764696649503,-500.0,0.00013698,2]
[395486739,1764696649512,-1957.22,0.00013698,2]
[395486740,1764696649522,-673.72,0.00013698,2]
[395486741,1764696649532,-500.0,0.00013698,2]
[395486742,1764696649541,-500.0,0.00013698,2]
[395486743,1764696649551,-500.0,0.00013698,2]
[395486744,1764696649561,-500.0,0.00013698,2]
[395486745,1764696649570,-514.57,0.00013698,2]
[395486746,1764696649580,-500.0,0.00013698,2]
[395486747,1764696649589,-377.730177,0.00013698,2]
[395486748,1764696649599,-377.730177,0.00013698,2]
[395486749,1764696649609,-1075.95,0.00013698,2]
[395486750,1764696649619,-377.730177,0.00013698,2]
[395486751,1764696649628,-658.31,0.00013698,2]
[395486752,1764696649642,-377.730177,0.00013698,2]
[395486753,1764696649652,-620.02,0.00013698,2]
[395486754,1764696649661,-377.730177,0.00013698,2]
[395486755,1764696649675,-377.730177,0.00013698,2]
[395486756,1764696649684,-511.76,0.00013698,2]
[395486757,1764696649694,-377.730177,0.00013698,2]
[395486759,1764696649704,-377.730177,0.00013698,2]
[395486761,1764696649714,-377.730177,0.00013698,2]
[395486763,1764696649724,-919.01,0.00013698,2]
[395486765,1764696649734,-500.0,0.00013698,2]
[395486767,1764696649743,-504.88307762,0.00013698,2]
[395486769,1764696649753,-377.730177,0.00013698,2]
[395486771,1764696649762,-377.730177,0.00013698,2]
[395486773,1764696649771,-377.730177,0.00013698,2]
[395486775,1764696649780,-1036.35,0.00013698,2]
[395486777,1764696649790,-377.730177,0.00013698,2]
[395486779,1764696649799,-500.0,0.00013698,2]
[395486781,1764696649809,-377.730177,0.00013698,2]
[395486783,1764696649818,-377.730177,0.00013698,2]
[395486785,1764696649828,-377.730177,0.00013698,2]
[395486787,1764696649837,-377.730177,0.00013698,2]
[395486789,1764696649847,-377.730177,0.00013698,2]
[395486792,1764696649860,-377.730177,0.00013698,2]
[395486793,1764696649869,-377.730172,0.00013698,2]
[395486795,1764696649879,-500.79025457,0.00013698,2]
[395486797,1764696649888,-500.0,0.00013698,2]
[395486799,1764696649897,-321.08558049,0.00013698,2]
[395486801,1764696649907,-500.0,0.00013698,2]
[395486803,1764696649916,-816.55,0.00013698,2]
[395486806,1764696649930,-500.0,0.00013698,2]
[395486807,1764696649940,-500.0,0.00013698,2]
[395486810,1764696649950,-500.23658644,0.00013698,2]
[395486812,1764696649960,-500.0,0.00013698,2]
[395486813,1764696649970,-648.17,0.00013698,2]
[395486816,1764696649980,-717.49,0.00013698,2]
[395486818,1764696649990,-805.68,0.00013698,2]
[395486820,1764696650000,-500.0,0.00013698,2]
[395486822,1764696650012,-500.0,0.00013698,2]
[395486823,1764696650022,-500.0,0.00013698,2]
[395486825,1764696650031,-500.0,0.00013698,2]
[395486828,1764696650041,-500.0,0.00013698,2]
[395486830,1764696650051,-1498.65,0.00013698,2]
[395486832,1764696650060,-500.99010177,0.00013698,2]
[395486834,1764696650070,-502.03936758,0.00013698,2]
[395486836,1764696650080,-500.0,0.00013698,2]
[395486838,1764696650090,-509.83194321,0.00013698,2]
[395486840,1764696650099,-500.0,0.00013698,2]
[395486842,1764696650109,-500.0,0.00013698,2]
[395486844,1764696650118,-500.0,0.00013698,2]
[395486846,1764696650128,-562.51,0.00013698,2]
[395486848,1764696650138,-500.71219456,0.00013698,2]
[395486850,1764696650149,-501.69310399,0.00013698,2]
[395486852,1764696650159,-500.0,0.00013698,2]
[395486854,1764696650169,-500.0,0.00013698,2]
[395486857,1764696650183,-500.0,0.00013698,2]
[395486859,1764696650193,-500.0,0.00013698,2]
[395486861,1764696650204,-500.0,0.00013698,2]
[395486863,1764696650214,-500.0,0.00013698,2]
[395486865,1764696650224,-500.0,0.00013698,2]
[395486867,1764696650235,-1067.31,0.00013698,2]
[395486869,1764696650244,-516.22536653,0.00013698,2]
[395486871,1764696650254,-500.0,0.00013698,2]
[395486873,1764696650263,-500.0,0.00013698,2]
[395486875,1764696650272,-500.0,0.00013698,2]
[395486877,1764696650282,-500.0,0.00013698,2]
[395486879,1764696650295,-500.38948227,0.00013698,2]
[395486881,1764696650304,-500.0,0.00013698,2]
[395486883,1764696650314,-500.0,0.00013698,2]
[395486885,1764696650324,-692.72,0.00013698,2]
[395486887,1764696650334,-500.0,0.00013698,2]
[395486889,1764696650344,-500.0,0.00013698,2]
[395486891,1764696650353,-5547.1,0.00013698,2]
[395486894,1764696650363,-500.0,0.00013698,2]
[395486896,1764696650372,-651.79,0.00013698,2]
[395486898,1764696650383,-500.0,0.00013698,2]
[395486900,1764696650392,-500.0,0.00013698,2]
[395486902,1764696650402,-731.04,0.00013698,2]
[395486904,1764696650411,-279.138762,0.00013698,2]
[395486906,1764696650421,-151.0,0.00013698,2]
[395486908,1764696650431,-279.138762,0.00013698,2]
[395486910,1764696650440,-151.0,0.00013698,2]
[395486912,1764696650450,-279.138762,0.00013698,2]
[395486914,1764696650460,-166.973335,0.00013698,2]
[395486916,1764696650469,-279.138762,0.00013698,2]
[395486918,1764696650478,-279.138762,0.00013698,2]
[395486920,1764696650487,-500.0,0.00013698,2]
[395486922,1764696650496,-279.138762,0.00013698,2]
[395486924,1764696650507,-279.138762,0.00013698,2]
[395486926,1764696650516,-279.138762,0.00013698,2]
[395486928,1764696650526,-279.138762,0.00013698,2]
[395486930,1764696650535,-748.72,0.00013698,2]
[395486932,1764696650545,-279.138762,0.00013698,2]
[395486934,1764696650554,-279.138762,0.00013698,2]
[395486936,1764696650564,-279.138762,0.00013698,2]
[395486938,1764696650574,-279.138762,0.00013698,2]
[395486940,1764696650583,-818.44,0.00013698,2]
[395486942,1764696650592,-279.138762,0.00013698,2]
[395486944,1764696650602,-279.138762,0.00013698,2]
[395486946,1764696650612,-279.138762,0.00013698,2]
[395486948,1764696650622,-279.138762,0.00013698,2]
[395486951,1764696650632,-1271.6,0.00013698,2]
[395486953,1764696650643,-279.138762,0.00013698,2]
[395486955,1764696650653,-500.0,0.00013698,2]
[395486957,1764696650663,-279.138762,0.00013698,2]
[395486959,1764696650673,-279.138761,0.00013698,2]
[395486961,1764696650683,-500.0,0.00013698,2]
[395486963,1764696650693,-198.05929147,0.00013698,2]
[395486965,1764696650704,-500.0,0.00013698,2]
[395486967,1764696650713,-500.0,0.00013698,2]
[395486969,1764696650723,-1000.30079319,0.00013698,2]
[395486971,1764696650733,-500.0,0.00013698,2]
[395486973,1764696650743,-502.07924936,0.00013698,2]
[395486975,1764696650752,-500.0,0.00013698,2]
[395486977,1764696650761,-1287.65,0.00013698,2]
[395486979,1764696650771,-1041.48,0.00013698,2]
[395486981,1764696650782,-500.0,0.00013698,2]
[395486984,1764696650798,-500.0,0.00013698,2]
[395486986,1764696650808,-500.0,0.00013698,2]
[395486988,1764696650818,-510.65189881,0.00013698,2]
[395486990,1764696650827,-519.1689574,0.00013698,2]
[395486992,1764696650837,-500.0,0.00013698,2]
[395486994,1764696650847,-151.0,0.00013698,2]
[395486996,1764696650858,-714.22,0.00013698,2]
[395486998,1764696650869,-151.0,0.00013698,2]
[395487000,1764696650878,-151.0,0.00013698,2]
[395487002,1764696650888,-151.0,0.00013698,2]
[395487004,1764696650898,-151.0,0.00013698,2]
[395487006,1764696650908,-500.0,0.00013698,2]
[395487008,1764696650919,-151.0,0.00013698,2]
[395487010,1764696650933,-151.0,0.00013698,2]
[395487012,1764696650942,-151.0,0.00013698,2]
[395487015,1764696650954,-151.0,0.00013698,2]
[395487017,1764696650965,-151.0,0.00013698,2]
[395487019,1764696650975,-236.522421,0.00013698,2]
[395487021,1764696650985,-500.53666272,0.00013698,2]
[395487023,1764696650995,-500.0,0.00013698,2]
[395487025,1764696651006,-375.9996,0.00013698,2]
[395487027,1764696651016,-375.9996,0.00013698,2]
[395487029,1764696651026,-375.9996,0.00013698,2]
[395487031,1764696651036,-375.9996,0.00013698,2]
[395487033,1764696651046,-375.9996,0.00013698,2]
[395487035,1764696651056,-375.9996,0.00013698,2]
[395487037,1764696651066,-375.9996,0.00013698,2]
[395487039,1764696651075,-375.9996,0.00013698,2]
[395487041,1764696651085,-500.47868585,0.00013698,2]
[395487043,1764696651094,-375.9996,0.00013698,2]
[395487045,1764696651105,-375.9996,0.00013698,2]
[395487047,1764696651114,-375.9996,0.00013698,2]
[395487049,1764696651123,-375.9996,0.00013698,2]
[395487051,1764696651133,-375.9996,0.00013698,2]
[395487053,1764696651143,-375.9996,0.00013698,2]
[395487055,1764696651152,-500.0,0.00013698,2]
[395487057,1764696651161,-500.0,0.00013698,2]
[395487059,1764696651172,-500.0,0.00013698,2]
[395487061,1764696651182,-375.9996,0.00013698,2]
[395487063,1764696651191,-375.9996,0.00013698,2]
[395487066,1764696651202,-375.9996,0.00013698,2]
[395487068,1764696651212,-375.9996,0.00013698,2]
[395487069,1764696651221,-500.70850448,0.00013698,2]
[395487072,1764696651231,-1608.19,0.00013698,2]
[395487074,1764696651241,-375.9996,0.00013698,2]
[395487076,1764696651251,-375.999598,0.00013698,2]
[395487078,1764696651260,-500.0,0.00013698,2]
[395487080,1764696651270,-500.0,0.00013698,2]
[395487082,1764696651279,-500.0,0.00013698,2]
[395487084,1764696651288,-1140.35,0.00013698,2]
[395487086,1764696651298,-594.35,0.00013698,2]
[395487088,1764696651307,-500.16563259,0.00013698,2]
[395487090,1764696651316,-1094.41,0.00013698,2]
[395487092,1764696651326,-501.88711023,0.00013698,2]
[395487094,1764696651336,-500.0,0.00013698,2]
[395487096,1764696651345,-1353.53,0.00013698,2]
[395487098,1764696651355,-500.0,0.00013698,2]
[395487100,1764696651364,-500.0,0.00013698,2]
[395487102,1764696651374,-877.82,0.00013698,2]
[395487104,1764696651383,-1551.41,0.00013698,2]
[395487106,1764696651393,-500.0,0.00013698,2]
[395487108,1764696651403,-500.0,0.00013698,2]
[395487110,1764696651412,-500.0,0.00013698,2]
[395487112,1764696651422,-694.57,0.00013698,2]
[395487114,1764696651431,-500.0,0.00013698,2]
[395487116,1764696651442,-500.0,0.00013698,2]
[395487118,1764696651452,-500.0,0.00013698,2]
[395487120,1764696651462,-982.13,0.00013698,2]
[395487122,1764696651471,-500.0,0.00013698,2]
[395487124,1764696651480,-500.0,0.00013698,2]
[395487126,1764696651489,-3067.99,0.00013698,2]
[395487128,1764696651499,-500.0,0.00013698,2]
[395487130,1764696651508,-500.0,0.00013698,2]
[395487132,1764696651518,-653.16,0.00013698,2]
[395487134,1764696651528,-1162.03,0.00013698,2]
[395487136,1764696651537,-500.0,0.00013698,2]
[395487139,1764696651548,-500.0,0.00013698,2]
[395487141,1764696651558,-500.0,0.00013698,2]
[395487143,1764696651567,-500.0,0.00013698,2]
[395487144,1764696651576,-2250.3,0.00013698,2]
[395487146,1764696651586,-500.0,0.00013698,2]
[395487148,1764696651596,-500.0,0.00013698,2]
[395487150,1764696651606,-500.0,0.00013698,2]
[395487153,1764696651615,-500.0,0.00013698,2]
[395487154,1764696651625,-505.49056093,0.00013698,2]
[395487156,1764696651634,-532.40271708,0.00013698,2]
[395487158,1764696651644,-500.0,0.00013698,2]
[395487160,1764696651654,-500.0,0.00013698,2]
[395487162,1764696651663,-500.0,0.00013698,2]
[395487164,1764696651674,-1593.42,0.00013698,2]
[395487166,1764696651684,-1744.96,0.00013698,2]
[395487168,1764696651693,-500.0,0.00013698,2]
[395487170,1764696651704,-500.0,0.00013698,2]
[395487172,1764696651713,-500.0,0.00013698,2]
[395487174,1764696651723,-500.0,0.00013698,2]
[395487176,1764696651732,-500.0,0.00013698,2]
[395487178,1764696651742,-500.89827223,0.00013698,2]
[395487180,1764696651752,-500.0,0.00013698,2]
[395487182,1764696651761,-500.0,0.00013698,2]
[395487184,1764696651771,-500.0,0.00013698,2]
[395487186,1764696651780,-522.0,0.00013698,2]
[395487188,1764696651790,-573.68,0.00013698,2]
[395487190,1764696651799,-500.0,0.00013698,2]
[395487192,1764696651809,-1205.64,0.00013698,2]
[395487195,1764696651818,-676.82,0.00013698,2]
[395487196,1764696651827,-151.0,0.00013698,2]
[395487198,1764696651837,-1414.23,0.00013698,2]
[395487201,1764696651848,-151.0,0.00013698,2]
[395487203,1764696651857,-151.0,0.00013698,2]
[395487205,1764696651868,-151.0,0.00013698,2]
[395487206,1764696651877,-501.7171096,0.00013698,2]
[395487208,1764696651886,-151.0,0.00013698,2]
[395487210,1764696651896,-500.0,0.00013698,2]
[395487212,1764696651906,-151.0,0.00013698,2]
[395487214,1764696651916,-500.0,0.00013698,2]
[395487216,1764696651929,-500.0,0.00013698,2]
[395487219,1764696651939,-704.61,0.00013698,2]
[395487221,1764696651949,-500.87717496,0.00013698,2]
[395487223,1764696651960,-1449.19,0.00013698,2]
[395487225,1764696651970,-1532.27,0.00013698,2]
[395487227,1764696651980,-500.75550034,0.00013698,2]
[395487229,1764696651990,-500.0,0.00013698,2]
[395487231,1764696652001,-500.0,0.00013698,2]
[395487233,1764696652012,-500.0,0.00013698,2]
[395487235,1764696652022,-500.0,0.00013698,2]
[395487237,1764696652031,-500.0,0.00013698,2]
[395487239,1764696652042,-500.43630465,0.00013698,2]
[395487241,1764696652051,-500.0,0.00013698,2]
[395487243,1764696652061,-500.0,0.00013698,2]
[395487245,1764696652070,-500.0,0.00013698,2]
[395487247,1764696652080,-691.43,0.00013698,2]
[395487249,1764696652089,-500.0,0.00013698,2]
[395487251,1764696652099,-500.0,0.00013698,2]
[395487253,1764696652110,-500.0,0.00013698,2]
[395487255,1764696652119,-500.0,0.00013698,2]
[395487257,1764696652129,-500.0,0.00013698,2]
[395487259,1764696652138,-500.0,0.00013698,2]
[395487261,1764696652147,-500.0,0.00013698,2]
[395487263,1764696652158,-709.29,0.00013698,2]
[395487265,1764696652168,-500.0,0.00013698,2]
[395487267,1764696652178,-3688.46,0.00013698,2]
[395487269,1764696652187,-500.0,0.00013698,2]
[395487271,1764696652197,-500.0,0.00013698,2]
[395487273,1764696652211,-523.05,0.00013698,2]
[395487275,1764696652221,-500.4056465,0.00013698,2]
[395487277,1764696652230,-500.0,0.00013698,2]
[395487279,1764696652240,-500.13520368,0.00013698,2]
[395487281,1764696652249,-962.54,0.00013698,2]
[395487283,1764696652259,-980.77,0.00013698,2]
[395487285,1764696652269,-500.0,0.00013698,2]
[395487287,1764696652279,-457.37311942,0.00013698,2]
[395487289,1764696652289,-500.59678131,0.00013698,2]
[395487308,1764696652461,-500.0,0.00013698,2]
[395487310,1764696652471,-500.0,0.00013698,2]
[395487312,1764696652481,-500.0,0.00013698,2]
[395487314,1764696652490,-151.0,0.00013698,2]
[395487316,1764696652499,-501.1861965,0.00013698,2]
[395487318,1764696652509,-151.0,0.00013698,2]
[395487320,1764696652518,-151.0,0.00013698,2]
[395487322,1764696652527,-979.15,0.00013698,2]
[395487324,1764696652536,-500.0,0.00013698,2]
[395487326,1764696652545,-500.0,0.00013698,2]
[395487328,1764696652555,-2152.34,0.00013698,2]
[395487330,1764696652565,-1093.32,0.00013698,2]
[395487332,1764696652574,-500.0,0.00013698,2]
[395487334,1764696652583,-1659.94,0.00013698,2]
[395487336,1764696652593,-1183.5,0.00013698,2]
[395487338,1764696652603,-852.7,0.00013698,2]
[395487340,1764696652613,-500.0,0.00013698,2]
[395487342,1764696652623,-688.68,0.00013698,2]
[395487344,1764696652632,-500.0,0.00013698,2]
[395487346,1764696652642,-500.0,0.00013698,2]
[395487348,1764696652652,-500.0,0.00013698,2]
[395487350,1764696652661,-740.57,0.00013698,2]
[395487352,1764696652671,-500.0,0.00013698,2]
[395487354,1764696652681,-500.0,0.00013698,2]
[395487356,1764696652690,-953.58,0.00013698,2]
[395487358,1764696652702,-1433.75,0.00013698,2]
[395487360,1764696652713,-500.0,0.00013698,2]
[395487362,1764696652723,-500.0,0.00013698,2]
[395487364,1764696652732,-669.01,0.00013698,2]
[395487366,1764696652742,-500.0,0.00013698,2]
[395487368,1764696652752,-1406.89,0.00013698,2]
[395487370,1764696652762,-500.0,0.00013698,2]
[395487372,1764696652771,-601.4257239,0.00013698,2]
[395487374,1764696652780,-500.0,0.00013698,2]
[395487376,1764696652792,-500.86552664,0.00013698,2]
[395487378,1764696652805,-2198.81,0.00013698,2]
[395487380,1764696652814,-543.26,0.00013698,2]
[395487382,1764696652823,-560.14,0.00013698,2]
[395487384,1764696652832,-500.0,0.00013698,2]
[395487386,1764696652843,-500.0,0.00013698,2]
[395487388,1764696652852,-955.64,0.00013698,2]
[395487390,1764696652862,-500.0,0.00013698,2]
[395487393,1764696652872,-500.0,0.00013698,2]
[395487395,1764696652882,-500.0,0.00013698,2]
[395487397,1764696652891,-2377.87,0.00013698,2]
[395487399,1764696652901,-500.0,0.00013698,2]
[395487401,1764696652910,-835.84,0.00013698,2]
[395487403,1764696652920,-155.034266,0.00013698,2]
[395487405,1764696652933,-500.0,0.00013698,2]
[395487407,1764696652942,-703.12,0.00013698,2]
[395487409,1764696652951,-500.0,0.00013698,2]
[395487411,1764696652961,-587.29,0.00013698,2]
[395487412,1764696652970,-151.0,0.00013698,2]
[395487414,1764696652979,-269.169127,0.00013698,2]
[395487416,1764696652989,-688.02,0.00013698,2]
[395487418,1764696652998,-1765.84,0.00013698,2]
[395487420,1764696653009,-733.25,0.00013698,2]
[395487422,1764696653019,-755.65,0.00013698,2]
[395487424,1764696653028,-512.72189454,0.00013698,2]
[395487426,1764696653037,-1521.2,0.00013698,2]
[395487428,1764696653047,-1323.12,0.00013698,2]
[395487430,1764696653056,-500.0,0.00013698,2]
[395487432,1764696653065,-501.41610555,0.00013698,2]
[395487434,1764696653076,-500.0,0.00013698,2]
[395487436,1764696653085,-500.0,0.00013698,2]
[395487438,1764696653095,-646.71,0.00013698,2]
[395487440,1764696653104,-500.0,0.00013698,2]
[395487442,1764696653114,-500.0,0.00013698,2]
[395487444,1764696653124,-3202.77,0.00013698,2]
[395487447,1764696653134,-500.0,0.00013698,2]
[395487448,1764696653144,-151.0,0.00013698,2]
[395487451,1764696653153,-151.0,0.00013698,2]
[395487452,1764696653163,-919.73,0.00013698,2]
[395487455,1764696653173,-1392.21,0.00013698,2]
[395487456,1764696653182,-151.0,0.00013698,2]
[395487459,1764696653192,-151.0,0.00013698,2]
[395487461,1764696653201,-151.0,0.00013698,2]
[395487462,1764696653212,-296.776979,0.00013698,2]
[395487465,1764696653221,-500.0,0.00013698,2]
[395487467,1764696653231,-501.96984798,0.00013698,2]
[395487469,1764696653240,-500.0,0.00013698,2]
[395487471,1764696653250,-500.0,0.00013698,2]
[395487473,1764696653259,-734.67,0.00013698,2]
[395487475,1764696653269,-151.0,0.00013698,2]
[395487477,1764696653279,-500.0,0.00013698,2]
[395487479,1764696653288,-151.0,0.00013698,2]
[395487480,1764696653298,-151.0,0.00013698,2]
[395487483,1764696653308,-151.0,0.00013698,2]
[395487484,1764696653317,-187.927865,0.00013698,2]
[395487486,1764696653326,-500.0,0.00013698,2]
[395487489,1764696653336,-500.0,0.00013698,2]
[395487491,1764696653346,-500.0,0.00013698,2]
[395487493,1764696653356,-151.0,0.00013698,2]
[395487495,1764696653366,-500.0,0.00013698,2]
[395487496,1764696653377,-151.0,0.00013698,2]
[395487498,1764696653386,-151.0,0.00013698,2]
[395487500,1764696653396,-500.0,0.00013698,2]
[395487502,1764696653405,-500.0,0.00013698,2]
[395487504,1764696653415,-813.77,0.00013698,2]
[395487506,1764696653427,-500.0,0.00013698,2]
[395487508,1764696653436,-500.0,0.00013698,2]
[395487510,1764696653446,-500.0,0.00013698,2]
[395487512,1764696653456,-153.34426004,0.00013698,2]
[395487514,1764696653466,-500.0,0.00013698,2]
[395487516,1764696653476,-1593.38,0.00013698,2]
[395487518,1764696653486,-152.11343105,0.00013698,2]
[395487520,1764696653496,-151.0,0.00013698,2]
[395487522,1764696653505,-6033.77,0.00013698,2]
[395487524,1764696653515,-500.0,0.00013698,2]
[395487526,1764696653524,-1192.56,0.00013698,2]
[395487528,1764696653533,-506.75440127,0.00013698,2]
[395487530,1764696653543,-500.0,0.00013698,2]
[395487532,1764696653552,-1203.59,0.00013698,2]
[395487534,1764696653562,-1526.95,0.00013698,2]
[395487536,1764696653571,-7403.84,0.00013698,2]
[395487538,1764696653582,-500.0,0.00013698,2]
[395487540,1764696653592,-500.0,0.00013698,2]
[395487542,1764696653602,-151.0,0.00013698,2]
[395487544,1764696653611,-500.0,0.00013698,2]
[395487546,1764696653621,-547.97,0.00013698,2]
[395487548,1764696653630,-500.0,0.00013698,2]
[395487550,1764696653640,-500.0,0.00013698,2]
[395487552,1764696653650,-500.0,0.00013698,2]
[395487554,1764696653660,-500.0,0.00013698,2]
[395487556,1764696653669,-500.0,0.00013698,2]
[395487558,1764696653679,-500.0,0.00013698,2]
[395487559,1764696653688,-500.0,0.00013698,2]
[395487561,1764696653697,-500.0,0.00013698,2]
[395487563,1764696653708,-2019.79,0.00013698,2]
[395487565,1764696653718,-500.0,0.00013698,2]
[395487567,1764696653729,-500.0,0.00013698,2]
[395487569,1764696653739,-3663.22,0.00013698,2]
[395487571,1764696653748,-872.28,0.00013698,2]
[395487572,1764696653758,-151.0,0.00013698,2]
[395487573,1764696653768,-500.0,0.00013698,2]
[395487574,1764696653778,-500.0,0.00013698,2]
[395487575,1764696653788,-151.97669238,0.00013698,2]
[395487576,1764696653798,-500.0,0.00013698,2]
[395487577,1764696653808,-815.79,0.00013698,2]
[395487578,1764696653817,-151.0,0.00013698,2]
[395487579,1764696653828,-500.0,0.00013698,2]
[395487580,1764696653838,-2012.9,0.00013698,2]
[395487581,1764696653849,-500.0,0.00013698,2]
[395487582,1764696653859,-151.0,0.00013698,2]
[395487583,1764696653871,-500.0,0.00013698,2]
[395487584,1764696653881,-151.0,0.00013698,2]
[395487585,1764696653891,-151.0,0.00013698,2]
[395487586,1764696653901,-500.0,0.00013698,2]
[395487587,1764696653911,-151.0,0.00013698,2]
[395487588,1764696653921,-500.52642365,0.00013698,2]
[395487589,1764696653936,-151.0,0.00013698,2]
[395487590,1764696653946,-151.0,0.00013698,2]
[395487591,1764696653956,-1184.3,0.00013698,2]
[395487592,1764696653966,-500.0,0.00013698,2]
[395487593,1764696653978,-500.0,0.00013698,2]
[395487594,1764696653988,-1156.63,0.00013698,2]
[395487595,1764696653998,-514.72699823,0.00013698,2]
[395487596,1764696654008,-1256.61,0.00013698,2]
[395487597,1764696654018,-500.0,0.00013698,2]
[395487599,1764696654028,-500.0,0.00013698,2]
[395487601,1764696654040,-6927.07,0.00013698,2]
[395487603,1764696654049,-473.46724479,0.00013698,2]
[395487605,1764696654060,-500.0,0.00013698,2]
[395487607,1764696654069,-151.0,0.00013698,2]
[395487609,1764696654079,-500.0,0.00013698,2]
[395487611,1764696654089,-151.0,0.00013698,2]
[395487613,1764696654098,-230.907145,0.00013698,2]
[395487615,1764696654108,-1230.88,0.00013698,2]
[395487617,1764696654118,-2549.27,0.00013698,2]
[395487618,1764696654128,-500.0,0.00013698,2]
[395487620,1764696654138,-500.0,0.00013698,2]
[395487622,1764696654148,-1375.9,0.00013698,2]
[395487624,1764696654158,-530.68425587,0.00013698,2]
[395487626,1764696654168,-500.0,0.00013698,2]
[395487629,1764696654178,-1124.55,0.00013698,2]
[395487631,1764696654187,-646.89,0.00013698,2]
[395487633,1764696654197,-500.0,0.00013698,2]
[395487634,1764696654207,-1108.36,0.00013698,2]
[395487636,1764696654217,-500.0,0.00013698,2]
[395487638,1764696654227,-500.0,0.00013698,2]
[395487640,1764696654236,-500.0,0.00013698,2]
[395487642,1764696654248,-914.97,0.00013698,2]
[395487645,1764696654257,-151.0,0.00013698,2]
[395487647,1764696654267,-500.0,0.00013698,2]
[395487649,1764696654278,-151.0,0.00013698,2]
[395487650,1764696654287,-155.237841,0.00013698,2]
[395487653,1764696654297,-500.0,0.00013698,2]
[395487655,1764696654307,-500.35151118,0.00013698,2]
[395487656,1764696654316,-500.0,0.00013698,2]
[395487658,1764696654326,-500.0,0.00013698,2]
[395487660,1764696654335,-1417.88,0.00013698,2]
[395487662,1764696654344,-773.68,0.00013698,2]
[395487664,1764696654354,-500.0,0.00013698,2]
[395487666,1764696654364,-519.47,0.00013698,2]
[395487668,1764696654373,-500.0,0.00013698,2]
[395487670,1764696654383,-500.0,0.00013698,2]
[395487672,1764696654392,-500.0,0.00013698,2]
[395487674,1764696654402,-500.0,0.00013698,2]
[395487676,1764696654412,-1674.62,0.00013698,2]
[395487678,1764696654422,-500.0,0.00013698,2]
[395487680,1764696654432,-3493.69,0.00013698,2]
[395487682,1764696654442,-724.18,0.00013698,2]